[Event "Early-Titled-Tuesday-Blitz-October-03-2023"]
[Site "Chess.com"]
[Date "2023.10.03"]
[Round "9"]
[White "Mops_2004"]
[Black "Fandorine"]
[Result "0-1"]
[WhiteElo "2797"]
[BlackElo "2926"]
[TimeControl "180+1"]
[EndTime "9:47:48 PDT"]
[Termination "Fandorine won on time"]

1. g3 {[%clk 0:03:00.9]} 1... g6 {[%clk 0:02:56.7]} 2. Bg2 {[%clk 0:03:00.9]}
2... Bg7 {[%clk 0:02:55.6]} 3. d4 {[%clk 0:03:01.5]} 3... d5 {[%clk 0:02:49.8]}
4. Nf3 {[%clk 0:03:01.2]} 4... Nf6 {[%clk 0:02:50]} 5. O-O {[%clk 0:03:01.2]}
5... O-O {[%clk 0:02:50.7]} 6. c4 {[%clk 0:03:01.6]} 6... c5 {[%clk 0:02:51.3]}
7. dxc5 {[%clk 0:02:58.3]} 7... dxc4 {[%clk 0:02:48.3]} 8. Na3 {[%clk
0:02:57.8]} 8... c3 {[%clk 0:02:48.7]} 9. Nd4 {[%clk 0:02:57.8]} 9... Ne4 {[%clk
0:02:45.5]} 10. Bxe4 {[%clk 0:02:55.7]} 10... Qxd4 {[%clk 0:02:40.3]} 11. Qxd4
{[%clk 0:02:54.6]} 11... Bxd4 {[%clk 0:02:41.2]} 12. bxc3 {[%clk 0:02:53.7]}
12... Bxc5 {[%clk 0:02:41.3]} 13. Rb1 {[%clk 0:02:49.6]} 13... Nd7 {[%clk
0:02:31.3]} 14. Nc4 {[%clk 0:02:17.3]} 14... Nf6 {[%clk 0:02:21.9]} 15. Bg2
{[%clk 0:02:09]} 15... Be6 {[%clk 0:01:54.9]} 16. Na5 {[%clk 0:02:08.6]} 16...
Bb6 {[%clk 0:01:48.1]} 17. Nb3 {[%clk 0:01:36.1]} 17... Bd5 {[%clk 0:01:37.5]}
18. Ba3 {[%clk 0:01:20.9]} 18... Rfe8 {[%clk 0:01:24.1]} 19. Bxd5 {[%clk
0:00:42.3]} 19... Nxd5 {[%clk 0:01:23.9]} 20. c4 {[%clk 0:00:38.9]} 20... Nc3
{[%clk 0:01:23.9]} 21. Rb2 {[%clk 0:00:39.2]} 21... Bc7 {[%clk 0:00:49.9]} 22.
Rc1 {[%clk 0:00:23.1]} 22... Ne4 {[%clk 0:00:43.1]} 23. c5 {[%clk 0:00:15.9]}
23... Rad8 {[%clk 0:00:34.7]} 24. Kg2 {[%clk 0:00:16]} 24... f5 {[%clk 0:00:33]}
25. e3 {[%clk 0:00:12.4]} 25... Kf7 {[%clk 0:00:31.9]} 26. Nd4 {[%clk
0:00:11.8]} 26... b6 {[%clk 0:00:24.6]} 27. c6 {[%clk 0:00:09.3]} 27... a6
{[%clk 0:00:21.8]} 28. Bb4 {[%clk 0:00:08]} 28... Rd5 {[%clk 0:00:21.8]} 29. a4
{[%clk 0:00:07.4]} 29... e5 {[%clk 0:00:19]} 30. Nf3 {[%clk 0:00:07.3]} 30...
Red8 {[%clk 0:00:19.6]} 31. Be1 {[%clk 0:00:07.5]} 31... h6 {[%clk 0:00:19.4]}
32. h4 {[%clk 0:00:06.7]} 32... Nf6 {[%clk 0:00:18.6]} 33. Rbc2 {[%clk
0:00:06.1]} 33... Ne4 {[%clk 0:00:17.8]} 34. Rb1 {[%clk 0:00:05]} 34... Kf6
{[%clk 0:00:17.6]} 35. Rbc1 {[%clk 0:00:04.6]} 35... g5 {[%clk 0:00:18.1]} 36.
hxg5+ {[%clk 0:00:04.4]} 36... hxg5 {[%clk 0:00:19]} 37. Ng1 {[%clk 0:00:04.6]}
37... g4 {[%clk 0:00:19.5]} 38. Ne2 {[%clk 0:00:05]} 38... Ke6 {[%clk 0:00:17]}
39. Nc3 {[%clk 0:00:04.8]} 39... Nxc3 {[%clk 0:00:17.3]} 40. Bxc3 {[%clk
0:00:05.2]} 40... Rd1 {[%clk 0:00:17.4]} 41. Rxd1 {[%clk 0:00:04.5]} 41... Rxd1
{[%clk 0:00:18.1]} 42. Bb4 {[%clk 0:00:03.9]} 42... a5 {[%clk 0:00:14.4]} 43.
Bf8 {[%clk 0:00:03.4]} 43... Ra1 {[%clk 0:00:12.5]} 44. Rd2 {[%clk 0:00:02.3]}
44... Rc1 {[%clk 0:00:12.9]} 45. Rd7 {[%clk 0:00:01.7]} 45... Rxc6 {[%clk
0:00:13.5]} 46. Re7+ {[%clk 0:00:02.6]} 46... Kd5 {[%clk 0:00:13.4]} 47. Rf7
{[%clk 0:00:02.9]} 47... Ke4 {[%clk 0:00:13.9]} 48. Bg7 {[%clk 0:00:02.8]} 48...
Rc4 {[%clk 0:00:10.4]} 49. Kf1 {[%clk 0:00:01.9]} 49... Bd6 {[%clk 0:00:09.8]}
50. Rd7 {[%clk 0:00:01.6]} 50... Kd5 {[%clk 0:00:06.2]} 51. Bf8 {[%clk
0:00:01.2]} 51... Rc6 {[%clk 0:00:06.8]} 52. Bxd6 {[%clk 0:00:01]} 52... Rxd6
{[%clk 0:00:07.3]} 53. Rf7 {[%clk 0:00:01.7]} 53... Ke4 {[%clk 0:00:07.6]} 54.
Kg2 {[%clk 0:00:01.7]} 54... Rc6 {[%clk 0:00:07.3]} 55. Rb7 {[%clk 0:00:02.2]}
55... Kd5 {[%clk 0:00:07]} 56. Rd7+ {[%clk 0:00:02.1]} 56... Rd6 {[%clk
0:00:05.7]} 57. Rf7 {[%clk 0:00:02.5]} 57... Ke6 {[%clk 0:00:05.5]} 58. Rb7
{[%clk 0:00:03.1]} 58... Rc6 {[%clk 0:00:03.9]} 59. Rb8 {[%clk 0:00:03.3]} 59...
Kd5 {[%clk 0:00:04.2]} 60. Rf8 {[%clk 0:00:02.8]} 60... Rc4 {[%clk 0:00:03.7]}
61. Rb8 {[%clk 0:00:02.7]} 61... Rb4 {[%clk 0:00:03.1]} 62. Rd8+ {[%clk
0:00:01.7]} 62... Ke4 {[%clk 0:00:02.9]} 63. Rd6 {[%clk 0:00:02.1]} 63... Rxa4
{[%clk 0:00:02.8]} 64. Rxb6 {[%clk 0:00:02.2]} 64... Ra2 {[%clk 0:00:03.6]} 65.
Ra6 {[%clk 0:00:02.9]} 65... a4 {[%clk 0:00:03.9]} 66. Ra8 {[%clk 0:00:03.1]}
66... a3 {[%clk 0:00:04.4]} 67. Ra4+ {[%clk 0:00:03.7]} 67... Kd3 {[%clk
0:00:04.9]} 68. Ra5 {[%clk 0:00:04.2]} 68... e4 {[%clk 0:00:05.2]} 69. Rxf5
{[%clk 0:00:04.2]} 69... Rc2 {[%clk 0:00:05.6]} 70. Ra5 {[%clk 0:00:04.3]} 70...
a2 {[%clk 0:00:05.7]} 71. Ra3+ {[%clk 0:00:03.7]} 71... Kd2 {[%clk 0:00:05.7]}
72. Ra4 {[%clk 0:00:03.4]} 72... Kc1 {[%clk 0:00:06.1]} 73. Kf1 {[%clk
0:00:02.4]} 73... Kb1 {[%clk 0:00:06.3]} 0-1

[Event "Early-Titled-Tuesday-Blitz-October-03-2023"]
[Site "Chess.com"]
[Date "2023.10.03"]
[Round "9"]
[White "bazar-wokzal"]
[Black "venturov"]
[Result "0-1"]
[WhiteElo "2607"]
[BlackElo "2501"]
[TimeControl "180+1"]
[EndTime "9:47:56 PDT"]
[Termination "venturov won by resignation"]

1. e4 {[%clk 0:02:31.4]} 1... c5 {[%clk 0:02:52.1]} 2. c3 {[%clk 0:02:31.1]}
2... Nf6 {[%clk 0:02:51.9]} 3. e5 {[%clk 0:02:31.2]} 3... Nd5 {[%clk 0:02:52.6]}
4. d4 {[%clk 0:02:31.6]} 4... cxd4 {[%clk 0:02:53.5]} 5. cxd4 {[%clk 0:02:32.2]}
5... d6 {[%clk 0:02:54]} 6. Bc4 {[%clk 0:02:31.9]} 6... e6 {[%clk 0:02:54.4]} 7.
Nf3 {[%clk 0:02:31.8]} 7... Be7 {[%clk 0:02:54.5]} 8. O-O {[%clk 0:02:31]} 8...
O-O {[%clk 0:02:55.1]} 9. Qe2 {[%clk 0:02:31.5]} 9... b6 {[%clk 0:02:55]} 10.
Qe4 {[%clk 0:02:28.1]} 10... Ba6 {[%clk 0:02:35.6]} 11. Bxd5 {[%clk 0:01:53.6]}
11... exd5 {[%clk 0:02:36.5]} 12. Qxd5 {[%clk 0:01:53.9]} 12... Nc6 {[%clk
0:01:15.5]} 13. Re1 {[%clk 0:01:31.7]} 13... Nb4 {[%clk 0:01:13.3]} 14. Qb3
{[%clk 0:01:28.2]} 14... dxe5 {[%clk 0:01:12]} 15. dxe5 {[%clk 0:01:19]} 15...
Rc8 {[%clk 0:01:07.9]} 16. Nc3 {[%clk 0:01:15.8]} 16... Bc4 {[%clk 0:01:04.2]}
17. Qd1 {[%clk 0:01:01]} 17... Nd3 {[%clk 0:01:03.5]} 18. Re4 {[%clk 0:00:55.4]}
18... Ba6 {[%clk 0:00:54.2]} 19. Ra4 {[%clk 0:00:48.8]} 19... Nc5 {[%clk
0:00:42.9]} 20. Rd4 {[%clk 0:00:42.4]} 20... Qe8 {[%clk 0:00:40.8]} 21. Nd5
{[%clk 0:00:33.4]} 21... Bb7 {[%clk 0:00:35.3]} 22. Be3 {[%clk 0:00:15.9]} 22...
Ne6 {[%clk 0:00:34.7]} 23. Rd2 {[%clk 0:00:15.2]} 23... Bc5 {[%clk 0:00:27.7]}
24. Rc1 {[%clk 0:00:14.4]} 24... Bxd5 {[%clk 0:00:25.4]} 25. Rxd5 {[%clk
0:00:12.4]} 25... Bxe3 {[%clk 0:00:25.4]} 26. fxe3 {[%clk 0:00:12.3]} 26... Rxc1
{[%clk 0:00:16]} 27. Qxc1 {[%clk 0:00:12.6]} 27... Qa8 {[%clk 0:00:15.8]} 28.
Rd3 {[%clk 0:00:10.3]} 28... h6 {[%clk 0:00:15.7]} 29. Qd2 {[%clk 0:00:10.1]}
29... Rc8 {[%clk 0:00:15.8]} 30. Nd4 {[%clk 0:00:09.7]} 30... Nc5 {[%clk
0:00:15.6]} 31. Rc3 {[%clk 0:00:09.2]} 31... Rd8 {[%clk 0:00:14.2]} 32. Qc2
{[%clk 0:00:08.5]} 32... Qd5 {[%clk 0:00:11.7]} 33. b4 {[%clk 0:00:07.1]} 33...
Ne6 {[%clk 0:00:12]} 34. Rc8 {[%clk 0:00:06.3]} 34... Nxd4 {[%clk 0:00:09.1]}
35. Rxd8+ {[%clk 0:00:06.2]} 35... Qxd8 {[%clk 0:00:10]} 36. exd4 {[%clk
0:00:06.6]} 36... Qxd4+ {[%clk 0:00:10.9]} 37. Kf1 {[%clk 0:00:07]} 37... Qxe5
{[%clk 0:00:08.8]} 38. Qc8+ {[%clk 0:00:07]} 38... Kh7 {[%clk 0:00:09.4]} 39.
Qb7 {[%clk 0:00:07.3]} 39... Qf4+ {[%clk 0:00:08.5]} 40. Kg1 {[%clk 0:00:07.4]}
40... Qd4+ {[%clk 0:00:06.8]} 41. Kf1 {[%clk 0:00:07.7]} 41... Qc4+ {[%clk
0:00:07.3]} 42. Kf2 {[%clk 0:00:07.5]} 42... Qxa2+ {[%clk 0:00:08]} 43. Kg3
{[%clk 0:00:07.9]} 43... Qa3+ {[%clk 0:00:08.2]} 44. Kf2 {[%clk 0:00:08.1]}
44... Qb2+ {[%clk 0:00:08.2]} 45. Kg3 {[%clk 0:00:08.4]} 45... Qc3+ {[%clk
0:00:08.5]} 46. Kf2 {[%clk 0:00:08.6]} 46... Qd2+ {[%clk 0:00:09]} 47. Kf3
{[%clk 0:00:07.6]} 47... Qd3+ {[%clk 0:00:09.3]} 48. Kf2 {[%clk 0:00:07.9]}
48... Qd4+ {[%clk 0:00:09.7]} 49. Kf3 {[%clk 0:00:08.1]} 49... Qxb4 {[%clk
0:00:10.1]} 50. Qxa7 {[%clk 0:00:07.8]} 50... Qc3+ {[%clk 0:00:10.4]} 51. Kf2
{[%clk 0:00:08]} 51... Qd4+ {[%clk 0:00:10.6]} 52. Kf3 {[%clk 0:00:08.5]} 52...
Qc3+ {[%clk 0:00:07.9]} 53. Kf2 {[%clk 0:00:08.9]} 53... Qc5+ {[%clk 0:00:07.6]}
54. Kf3 {[%clk 0:00:09.2]} 54... Qd5+ {[%clk 0:00:06.7]} 55. Kf2 {[%clk
0:00:09.5]} 55... b5 {[%clk 0:00:07.4]} 56. Qc7 {[%clk 0:00:08.6]} 56... b4
{[%clk 0:00:05.5]} 57. Qc2+ {[%clk 0:00:08.6]} 57... g6 {[%clk 0:00:06]} 58. Qb2
{[%clk 0:00:06.6]} 58... b3 {[%clk 0:00:06.1]} 59. h4 {[%clk 0:00:05.7]} 59...
h5 {[%clk 0:00:05.2]} 60. g4 {[%clk 0:00:05.3]} 60... hxg4 {[%clk 0:00:05.1]}
61. h5 {[%clk 0:00:05.4]} 61... Qxh5 {[%clk 0:00:03.5]} 62. Qxb3 {[%clk
0:00:04.1]} 62... Qh2+ {[%clk 0:00:03.8]} 63. Kf1 {[%clk 0:00:04.2]} 63... Qh1+
{[%clk 0:00:03.7]} 64. Kf2 {[%clk 0:00:04.6]} 64... Qf3+ {[%clk 0:00:04.1]} 65.
Qxf3 {[%clk 0:00:04.5]} 65... gxf3 {[%clk 0:00:05]} 66. Kxf3 {[%clk 0:00:05.1]}
66... f5 {[%clk 0:00:05.9]} 67. Kf4 {[%clk 0:00:05.5]} 67... Kg7 {[%clk
0:00:06.5]} 68. Kg5 {[%clk 0:00:06]} 68... Kf7 {[%clk 0:00:06.9]} 69. Kf4 {[%clk
0:00:06.4]} 69... Kf6 {[%clk 0:00:07.4]} 70. Kg3 {[%clk 0:00:06.9]} 70... g5
{[%clk 0:00:08.3]} 71. Kf3 {[%clk 0:00:07.3]} 71... Kg6 {[%clk 0:00:09.2]} 72.
Kg3 {[%clk 0:00:07.8]} 72... Kh5 {[%clk 0:00:10.1]} 73. Kh3 {[%clk 0:00:08.3]}
73... g4+ {[%clk 0:00:10.5]} 74. Kg3 {[%clk 0:00:08.7]} 74... Kg5 {[%clk
0:00:11.4]} 75. Kg2 {[%clk 0:00:09.3]} 75... f4 {[%clk 0:00:12.3]} 76. Kh2
{[%clk 0:00:09.9]} 76... Kf5 {[%clk 0:00:13.2]} 77. Kg2 {[%clk 0:00:10.3]} 77...
Ke4 {[%clk 0:00:13.9]} 78. Kf2 {[%clk 0:00:10.9]} 78... g3+ {[%clk 0:00:14]} 79.
Kg2 {[%clk 0:00:11.2]} 79... Ke3 {[%clk 0:00:14.4]} 80. Kg1 {[%clk 0:00:11.5]}
80... Kf3 {[%clk 0:00:14.3]} 81. Kf1 {[%clk 0:00:11.7]} 81... g2+ {[%clk
0:00:13.7]} 82. Kg1 {[%clk 0:00:12.1]} 82... Ke2 {[%clk 0:00:14.3]} 83. Kxg2
{[%clk 0:00:12.4]} 83... f3+ {[%clk 0:00:15.2]} 84. Kg3 {[%clk 0:00:13.1]} 84...
f2 {[%clk 0:00:16.1]} 0-1

[Event "Early-Titled-Tuesday-Blitz-October-03-2023"]
[Site "Chess.com"]
[Date "2023.10.03"]
[Round "9"]
[White "Herzog2012"]
[Black "Roedor"]
[Result "0-1"]
[WhiteElo "2495"]
[BlackElo "2409"]
[TimeControl "180+1"]
[EndTime "9:48:00 PDT"]
[Termination "Roedor won on time"]

1. e4 {[%clk 0:03:00.1]} 1... e5 {[%clk 0:01:16.2]} 2. Nf3 {[%clk 0:02:59.2]}
2... Nc6 {[%clk 0:01:15.8]} 3. Bc4 {[%clk 0:02:56.5]} 3... Bc5 {[%clk
0:01:15.2]} 4. c3 {[%clk 0:02:56.7]} 4... Nf6 {[%clk 0:01:15.1]} 5. d3 {[%clk
0:02:57.4]} 5... d6 {[%clk 0:01:15]} 6. b4 {[%clk 0:02:54.7]} 6... Bb6 {[%clk
0:01:14.5]} 7. a4 {[%clk 0:02:55.1]} 7... a5 {[%clk 0:01:14.3]} 8. b5 {[%clk
0:02:55]} 8... Ne7 {[%clk 0:01:14.6]} 9. O-O {[%clk 0:02:54.4]} 9... O-O {[%clk
0:01:14.6]} 10. Nbd2 {[%clk 0:02:52]} 10... Ng6 {[%clk 0:01:14.7]} 11. Bb3
{[%clk 0:02:51.6]} 11... Be6 {[%clk 0:01:14.5]} 12. Bxe6 {[%clk 0:02:47.5]}
12... fxe6 {[%clk 0:01:15.4]} 13. Nc4 {[%clk 0:02:42.5]} 13... Bc5 {[%clk
0:01:12.8]} 14. Be3 {[%clk 0:02:42.6]} 14... Bxe3 {[%clk 0:01:09.5]} 15. Nxe3
{[%clk 0:02:42.4]} 15... Nf4 {[%clk 0:01:06.6]} 16. g3 {[%clk 0:02:40.6]} 16...
Ng6 {[%clk 0:01:05.8]} 17. Kg2 {[%clk 0:02:39.6]} 17... b6 {[%clk 0:01:06.1]}
18. Qc2 {[%clk 0:02:32.7]} 18... Qe7 {[%clk 0:01:01.4]} 19. d4 {[%clk 0:02:31]}
19... h6 {[%clk 0:00:58.7]} 20. dxe5 {[%clk 0:02:28.2]} 20... dxe5 {[%clk
0:00:58.8]} 21. Rad1 {[%clk 0:02:25.3]} 21... Rf7 {[%clk 0:00:58.7]} 22. Qd3
{[%clk 0:02:17.9]} 22... Raf8 {[%clk 0:00:57.3]} 23. Nc4 {[%clk 0:02:13.9]}
23... Nh5 {[%clk 0:00:53.4]} 24. Qe3 {[%clk 0:01:44]} 24... Rxf3 {[%clk
0:00:51.5]} 25. Qxf3 {[%clk 0:01:44.3]} 25... Rxf3 {[%clk 0:00:52.1]} 26. Kxf3
{[%clk 0:01:44.7]} 26... Qc5 {[%clk 0:00:49.6]} 27. Rd8+ {[%clk 0:01:39.8]}
27... Kh7 {[%clk 0:00:48.4]} 28. Ne3 {[%clk 0:01:39.3]} 28... Qxc3 {[%clk
0:00:46.6]} 29. Rfd1 {[%clk 0:01:37.6]} 29... Nf6 {[%clk 0:00:42.8]} 30. Rc8
{[%clk 0:01:17.5]} 30... h5 {[%clk 0:00:41.7]} 31. Rdd8 {[%clk 0:00:53]} 31...
Ng4 {[%clk 0:00:39]} 32. Rd7 {[%clk 0:00:47.1]} 32... Nxe3 {[%clk 0:00:38.1]}
33. Rcxc7 {[%clk 0:00:35.1]} 33... Nc4+ {[%clk 0:00:38]} 34. Kg2 {[%clk
0:00:34.2]} 34... Nf8 {[%clk 0:00:30.5]} 35. Rxg7+ {[%clk 0:00:33.5]} 35... Kh8
{[%clk 0:00:30.8]} 36. Rgf7 {[%clk 0:00:30.7]} 36... Qb4 {[%clk 0:00:26.4]} 37.
Rc8 {[%clk 0:00:10.6]} 37... Kg8 {[%clk 0:00:26.6]} 38. Rfc7 {[%clk 0:00:10.2]}
38... Nd6 {[%clk 0:00:25.2]} 39. Rd8 {[%clk 0:00:09.3]} 39... Qxe4+ {[%clk
0:00:23.9]} 40. Kg1 {[%clk 0:00:08.9]} 40... Nf7 {[%clk 0:00:20.8]} 41. Re8
{[%clk 0:00:09.2]} 41... Ng5 {[%clk 0:00:20.1]} 42. Rcc8 {[%clk 0:00:06]} 42...
Nh7 {[%clk 0:00:12.5]} 43. Rc6 {[%clk 0:00:04.3]} 43... Qxa4 {[%clk 0:00:12.4]}
44. Rxb6 {[%clk 0:00:04.3]} 44... Qd1+ {[%clk 0:00:11.4]} 45. Kg2 {[%clk
0:00:04.2]} 45... a4 {[%clk 0:00:11.8]} 46. Rbb8 {[%clk 0:00:04.3]} 46... a3
{[%clk 0:00:11.3]} 47. Ra8 {[%clk 0:00:04.8]} 47... Qb3 {[%clk 0:00:11.1]} 48.
Reb8 {[%clk 0:00:02.6]} 48... a2 {[%clk 0:00:10.9]} 49. b6 {[%clk 0:00:02.7]}
49... e4 {[%clk 0:00:07.1]} 50. b7 {[%clk 0:00:02.5]} 50... e3 {[%clk
0:00:05.6]} 51. fxe3 {[%clk 0:00:02.1]} 51... Qb2+ {[%clk 0:00:05.9]} 52. Kh3
{[%clk 0:00:02.1]} 52... a1=Q {[%clk 0:00:06]} 53. Rxa1 {[%clk 0:00:01.5]} 53...
Qxa1 {[%clk 0:00:06.9]} 54. Rxf8+ {[%clk 0:00:02]} 54... Nxf8 {[%clk 0:00:07.1]}
55. b8=Q {[%clk 0:00:02.6]} 55... Qf6 {[%clk 0:00:08]} 56. Kg2 {[%clk
0:00:02.6]} 56... Qf5 {[%clk 0:00:08.2]} 57. Qf4 {[%clk 0:00:02.9]} 57... Qxf4
{[%clk 0:00:08]} 58. exf4 {[%clk 0:00:03.4]} 58... Kg7 {[%clk 0:00:08.9]} 59.
Kf3 {[%clk 0:00:03.9]} 59... Kg6 {[%clk 0:00:09.3]} 60. Ke4 {[%clk 0:00:04.1]}
60... Nd7 {[%clk 0:00:09.3]} 61. h3 {[%clk 0:00:04.7]} 61... Nf6+ {[%clk
0:00:09.5]} 62. Ke5 {[%clk 0:00:04.1]} 62... Kf7 {[%clk 0:00:09.8]} 63. f5
{[%clk 0:00:02.9]} 63... Nd7+ {[%clk 0:00:09.6]} 64. Kf4 {[%clk 0:00:03.2]}
64... e5+ {[%clk 0:00:09.8]} 65. Kg5 {[%clk 0:00:03.6]} 65... e4 {[%clk
0:00:10.1]} 66. Kf4 {[%clk 0:00:01.7]} 66... Nc5 {[%clk 0:00:10.7]} 67. g4
{[%clk 0:00:01.6]} 67... hxg4 {[%clk 0:00:11.6]} 68. hxg4 {[%clk 0:00:02.3]}
68... Kf6 {[%clk 0:00:11.2]} 69. g5+ {[%clk 0:00:02.7]} 69... Kf7 {[%clk
0:00:11.4]} 70. Ke3 {[%clk 0:00:03.3]} 70... Ke7 {[%clk 0:00:11.1]} 71. Kd4
{[%clk 0:00:03.5]} 71... Kd6 {[%clk 0:00:10.9]} 72. g6 {[%clk 0:00:02.3]} 72...
Ke7 {[%clk 0:00:10.4]} 0-1

[Event "Early-Titled-Tuesday-Blitz-October-03-2023"]
[Site "Chess.com"]
[Date "2023.10.03"]
[Round "10"]
[White "Khromkin"]
[Black "kingapolak"]
[Result "1-0"]
[WhiteElo "2451"]
[BlackElo "1783"]
[TimeControl "180+1"]
[EndTime "9:52:16 PDT"]
[Termination "Khromkin won by resignation"]

1. d4 {[%clk 0:03:00.9]} 1... d5 {[%clk 0:02:58.1]} 2. c4 {[%clk 0:03:00.6]}
2... e6 {[%clk 0:02:56.4]} 3. Nc3 {[%clk 0:03:00.1]} 3... Nf6 {[%clk 0:02:54.7]}
4. Bg5 {[%clk 0:03:00.5]} 4... Nbd7 {[%clk 0:02:54.3]} 5. e3 {[%clk 0:03:00.7]}
5... c6 {[%clk 0:02:53.9]} 6. cxd5 {[%clk 0:03:01.3]} 6... exd5 {[%clk
0:02:52.9]} 7. Qc2 {[%clk 0:03:01.9]} 7... Be7 {[%clk 0:02:47.1]} 8. Bd3 {[%clk
0:03:01.8]} 8... O-O {[%clk 0:02:47.1]} 9. Nf3 {[%clk 0:03:00.7]} 9... Re8
{[%clk 0:02:43.5]} 10. O-O {[%clk 0:02:58.8]} 10... Nf8 {[%clk 0:02:40.7]} 11.
Rae1 {[%clk 0:02:59.4]} 11... Ne4 {[%clk 0:02:31.8]} 12. Bxe7 {[%clk 0:02:58]}
12... Qxe7 {[%clk 0:02:31.7]} 13. Bxe4 {[%clk 0:02:58.7]} 13... dxe4 {[%clk
0:02:31.4]} 14. Nd2 {[%clk 0:02:59.3]} 14... f5 {[%clk 0:02:20.1]} 15. f3 {[%clk
0:02:59]} 15... exf3 {[%clk 0:02:15.1]} 16. Nxf3 {[%clk 0:02:59.9]} 16... Ng6
{[%clk 0:02:13.3]} 17. e4 {[%clk 0:02:59.6]} 17... fxe4 {[%clk 0:02:08.9]} 18.
Rxe4 {[%clk 0:02:59.3]} 18... Bf5 {[%clk 0:01:52]} 19. Qb3+ {[%clk 0:02:57.4]}
19... Qf7 {[%clk 0:01:51.3]} 20. Qxf7+ {[%clk 0:02:53.5]} 20... Kxf7 {[%clk
0:01:51.6]} 21. Ng5+ {[%clk 0:02:53.6]} 21... Kf6 {[%clk 0:01:49]} 22. Nxh7+
{[%clk 0:02:53.6]} 22... Kf7 {[%clk 0:01:49.4]} 23. Rxf5+ {[%clk 0:02:53.5]}
23... Kg8 {[%clk 0:01:49.2]} 24. Ng5 {[%clk 0:02:51.9]} 1-0

[Event "Early-Titled-Tuesday-Blitz-October-03-2023"]
[Site "Chess.com"]
[Date "2023.10.03"]
[Round "10"]
[White "Zablotsky"]
[Black "Let_it_be_1"]
[Result "1-0"]
[WhiteElo "2744"]
[BlackElo "2625"]
[TimeControl "180+1"]
[EndTime "9:52:54 PDT"]
[Termination "Zablotsky won by resignation"]

1. Nf3 {[%clk 0:03:00.9]} 1... d5 {[%clk 0:02:58.3]} 2. g3 {[%clk 0:03:01.4]}
2... e6 {[%clk 0:02:58.4]} 3. Bg2 {[%clk 0:03:02]} 3... Nf6 {[%clk 0:02:58.4]}
4. O-O {[%clk 0:03:02.5]} 4... Be7 {[%clk 0:02:58.8]} 5. d4 {[%clk 0:03:01.4]}
5... O-O {[%clk 0:02:58.4]} 6. c4 {[%clk 0:03:01.4]} 6... dxc4 {[%clk
0:02:58.7]} 7. Qc2 {[%clk 0:02:57.2]} 7... a6 {[%clk 0:02:58.8]} 8. a4 {[%clk
0:02:57.5]} 8... Bd7 {[%clk 0:02:58.4]} 9. Bg5 {[%clk 0:02:57.3]} 9... Bc6
{[%clk 0:02:56.7]} 10. Bxf6 {[%clk 0:02:57.4]} 10... Bxf6 {[%clk 0:02:56.7]} 11.
Rd1 {[%clk 0:02:57.6]} 11... b5 {[%clk 0:02:46.3]} 12. Nc3 {[%clk 0:02:55.8]}
12... Nd7 {[%clk 0:02:36.1]} 13. Ng5 {[%clk 0:02:54.6]} 13... Bxg5 {[%clk
0:02:31.7]} 14. Bxc6 {[%clk 0:02:54.4]} 14... Rb8 {[%clk 0:02:31.3]} 15. axb5
{[%clk 0:02:54.5]} 15... axb5 {[%clk 0:02:30.6]} 16. Nxb5 {[%clk 0:02:54.7]}
16... Nb6 {[%clk 0:02:23.4]} 17. Ra7 {[%clk 0:02:44.5]} 17... Nd5 {[%clk
0:02:19.5]} 18. Qxc4 {[%clk 0:02:32.6]} 18... Be7 {[%clk 0:02:13.3]} 19. Bxd5
{[%clk 0:02:28]} 19... exd5 {[%clk 0:02:12.5]} 20. Qxc7 {[%clk 0:01:58.8]} 20...
Rxb5 {[%clk 0:02:11.5]} 21. Qxe7 {[%clk 0:01:58.7]} 21... Rxb2 {[%clk
0:02:11.7]} 22. Rc1 {[%clk 0:01:49.6]} 22... Qb6 {[%clk 0:01:58]} 23. Qxf8+
{[%clk 0:01:47.9]} 1-0

[Event "Early-Titled-Tuesday-Blitz-October-03-2023"]
[Site "Chess.com"]
[Date "2023.10.03"]
[Round "10"]
[White "JoseRemolar"]
[Black "NelsonLinda"]
[Result "1-0"]
[WhiteElo "2483"]
[BlackElo "2583"]
[TimeControl "180+1"]
[EndTime "9:53:33 PDT"]
[Termination "JoseRemolar won by resignation"]

1. e4 {[%clk 0:02:55.8]} 1... c5 {[%clk 0:02:59.5]} 2. Nf3 {[%clk 0:02:56]} 2...
e6 {[%clk 0:02:58.9]} 3. d4 {[%clk 0:02:53.3]} 3... cxd4 {[%clk 0:02:59.8]} 4.
Nxd4 {[%clk 0:02:54.1]} 4... Nf6 {[%clk 0:03:00.5]} 5. Nc3 {[%clk 0:02:54.5]}
5... d6 {[%clk 0:03:00.8]} 6. Bd3 {[%clk 0:02:51.5]} 6... Nc6 {[%clk 0:03:00.3]}
7. Nb3 {[%clk 0:02:50.5]} 7... Be7 {[%clk 0:02:57.4]} 8. O-O {[%clk 0:02:50.4]}
8... O-O {[%clk 0:02:58]} 9. f4 {[%clk 0:02:48.4]} 9... a6 {[%clk 0:02:37.6]}
10. a3 {[%clk 0:02:41.4]} 10... b5 {[%clk 0:02:30.9]} 11. Qe2 {[%clk 0:02:40.1]}
11... Bb7 {[%clk 0:02:30.5]} 12. Rf3 {[%clk 0:02:18.4]} 12... e5 {[%clk
0:02:22.4]} 13. f5 {[%clk 0:02:10.7]} 13... Nd4 {[%clk 0:01:58.4]} 14. Nxd4
{[%clk 0:02:09.9]} 14... exd4 {[%clk 0:01:59.3]} 15. Nd1 {[%clk 0:02:10.1]}
15... Nd7 {[%clk 0:01:59.4]} 16. Rh3 {[%clk 0:02:05.4]} 16... Bf6 {[%clk
0:01:58.2]} 17. Qh5 {[%clk 0:01:54]} 17... h6 {[%clk 0:01:56.8]} 18. Bxh6 {[%clk
0:01:53.3]} 18... Re8 {[%clk 0:01:28.5]} 19. Bf4 {[%clk 0:01:50.2]} 1-0

[Event "Early-Titled-Tuesday-Blitz-October-03-2023"]
[Site "Chess.com"]
[Date "2023.10.03"]
[Round "10"]
[White "campochess"]
[Black "ljuks68"]
[Result "0-1"]
[WhiteElo "2152"]
[BlackElo "2389"]
[TimeControl "180+1"]
[EndTime "9:53:33 PDT"]
[Termination "ljuks68 won by resignation"]

1. d4 {[%clk 0:02:48]} 1... d5 {[%clk 0:02:59.9]} 2. Bg5 {[%clk 0:02:47.8]} 2...
f6 {[%clk 0:02:59.8]} 3. Bd2 {[%clk 0:02:46.4]} 3... c5 {[%clk 0:02:58.9]} 4. c3
{[%clk 0:02:42.1]} 4... Nc6 {[%clk 0:02:58.3]} 5. e3 {[%clk 0:02:42.2]} 5... e5
{[%clk 0:02:57.4]} 6. Bb5 {[%clk 0:02:41.3]} 6... Bd6 {[%clk 0:02:55.7]} 7. Qh5+
{[%clk 0:02:33.5]} 7... g6 {[%clk 0:02:54.9]} 8. Qe2 {[%clk 0:02:33.1]} 8... e4
{[%clk 0:02:47.9]} 9. dxc5 {[%clk 0:02:29.3]} 9... Bxc5 {[%clk 0:02:48.1]} 10.
a4 {[%clk 0:02:18.6]} 10... f5 {[%clk 0:02:47.6]} 11. Na3 {[%clk 0:02:17.6]}
11... Nf6 {[%clk 0:02:47]} 12. c4 {[%clk 0:02:16.7]} 12... d4 {[%clk 0:02:44.8]}
13. exd4 {[%clk 0:02:14.2]} 13... Bxd4 {[%clk 0:02:44.6]} 14. Bc3 {[%clk
0:02:14.2]} 14... Bxc3+ {[%clk 0:02:43.2]} 15. bxc3 {[%clk 0:02:14.2]} 15... O-O
{[%clk 0:02:42.4]} 16. Bxc6 {[%clk 0:02:11.8]} 16... bxc6 {[%clk 0:02:42.5]} 17.
Nh3 {[%clk 0:02:11.6]} 17... Qc7 {[%clk 0:02:34.4]} 18. O-O {[%clk 0:02:09.7]}
18... f4 {[%clk 0:02:33.9]} 19. Ng5 {[%clk 0:02:04.9]} 19... Qe5 {[%clk
0:02:31.1]} 20. h4 {[%clk 0:02:01.4]} 20... h6 {[%clk 0:02:28.7]} 21. Nh3 {[%clk
0:02:00.4]} 21... f3 {[%clk 0:02:23.3]} 22. Qe3 {[%clk 0:01:52.4]} 22... Qf5
{[%clk 0:02:11.1]} 23. Qxh6 {[%clk 0:01:28.1]} 23... fxg2 {[%clk 0:02:10.8]} 24.
Rfe1 {[%clk 0:01:25.4]} 24... Qxh3 {[%clk 0:02:04.8]} 25. Qxg6+ {[%clk
0:01:22.6]} 25... Kh8 {[%clk 0:02:04.8]} 26. Qxg2 {[%clk 0:01:11.4]} 26... Rg8
{[%clk 0:02:04]} 0-1